lending/lending_fUSD_20260306
["ID","MTS","AMOUNT","RATE_DAILY","PERIOD"]
[407768818,1772783523742,-2500.0,0.00047114,120]
[407768819,1772783523767,-2500.0,0.00047114,30]
[407768820,1772783523792,-2500.0,0.00047114,120]
[407768821,1772783523816,-2500.0,0.00047114,30]
[407768822,1772783523840,-2500.0,0.00047114,120]
[407768823,1772783523864,-2500.0,0.00047114,30]
[407768824,1772783523890,-2500.0,0.00047114,120]
[407768825,1772783523914,-2147.1259552,0.00047114,120]
[407768826,1772783523938,-168.83959475,0.00047114,30]
[407768827,1772783523963,-5000.0,0.00047114,120]
[407768828,1772783523988,-246.0,0.00047114,120]
[407768829,1772783524014,-50000.0,0.00047114,60]
[407768830,1772783524039,-844.0,0.00047114,120]
[407768831,1772783524062,-550.213734,0.00047114,120]
[407768832,1772783524086,-17341.95736399,0.00047114,120]
[407768833,1772783524112,-19773.6713594,0.00047114,120]
[407768834,1772783524141,-419.09592546,0.00047114,30]
[407768835,1772783524165,-13087.686437,0.00047114,120]
[407768836,1772783524189,-1030.0,0.00047114,120]
[407768837,1772783524213,-1000.0,0.00047114,120]
[407768838,1772783524236,-1000.0,0.00047114,120]
[407768839,1772783524260,-1000.0,0.00047114,120]
[407768840,1772783524285,-6000.0,0.00047114,120]
[407768841,1772783524308,-155.47646522,0.00047114,35]
[407768842,1772783524331,-1000.0,0.00047114,120]
[407768843,1772783524359,-50000.0,0.00047114,30]
[407768844,1772783524385,-50000.0,0.00047114,38]
[407768845,1772783524412,-329.172892,0.00047114,120]
[407768846,1772783524439,-12205.49245659,0.00047114,120]
[407768847,1772783524462,-400.0,0.00047114,30]
[407768848,1772783524487,-400.0,0.00047114,30]
[407768849,1772783524510,-400.0,0.00047114,30]
[407768850,1772783524535,-400.0,0.00047114,30]
[407768851,1772783524559,-400.0,0.00047114,30]
[407768852,1772783524584,-400.0,0.00047114,30]
[407768853,1772783524608,-400.0,0.00047114,30]
[407768854,1772783524632,-400.0,0.00047114,30]
[407768855,1772783524655,-400.0,0.00047114,30]
[407768856,1772783524678,-400.0,0.00047114,30]
[407768857,1772783524701,-400.0,0.00047114,30]
[407768858,1772783524725,-400.0,0.00047114,30]
[407768859,1772783524748,-400.0,0.00047114,30]
[407768860,1772783524771,-400.0,0.00047114,30]
[407768861,1772783524794,-400.0,0.00047114,30]
[407768862,1772783524818,-400.0,0.00047114,30]
[407768863,1772783524841,-480.99335504,0.00047114,30]
[407768864,1772783524865,-5829.0,0.00047114,120]
[407768865,1772783524890,-5000.0,0.00047114,30]
[407768866,1772783524916,-202.71217496,0.00047114,30]
[407768867,1772783524941,-4000.0,0.00047114,31]
[407768868,1772783524966,-141680.07944188,0.00047114,30]
[407768869,1772783524992,-9799.999999,0.00047114,120]
[407768870,1772783525020,-50000.0,0.00047114,34]
[407768871,1772783525048,-50000.0,0.00047114,39]
[407768872,1772783525076,-50000.0,0.00047114,40]
[407768873,1772783525101,-6343.0,0.00047114,120]
[407768874,1772783525127,-1000.0,0.00047114,30]
[407768875,1772783525155,-536.0,0.00047114,30]
[407768876,1772783525181,-31958.53650225,0.00047114,120]
[407768877,1772783525206,-8293.0151724,0.00047114,120]
[407768878,1772783525236,-677.21436764,0.00047114,30]
[407768879,1772783525263,-150.0,0.00047114,120]
[407768880,1772783525288,-157824.00838236,0.00047114,30]
[407768881,1772783525314,-2780990.76580963,0.00047114,30]
[407768882,1772783525340,-96144.28656297,0.00047114,30]
[407768883,1772783525368,-161942.17401327,0.00047114,30]
[407768884,1772783525394,-31567.98810083,0.00047114,30]
[407768885,1772783525728,-1552134.10033803,0.00047114,30]
[407768886,1772783525755,-6031.45379219,0.00047114,30]
[407768887,1772783525781,-124933.58410776,0.00047114,30]
[407768888,1772783525806,-17642.51314415,0.00047114,30]
[407768889,1772783536083,-1798.11713623,0.00047114,30]
[407768890,1772783536108,-729252.21081693,0.00047114,30]
[407768891,1772783536139,-3451881.20502733,0.00047114,30]
[407768892,1772783536169,-9852.77704401,0.00047114,30]
[407768893,1772783536646,-248347.64249912,0.00047114,30]
[407768894,1772783536671,-14537.51991305,0.00047114,30]
[407768895,1772783536697,-50000.0,0.00047114,41]
[407768896,1772783536721,-1000.0,0.00047114,120]
[407768897,1772783536745,-1000.0,0.00047114,120]
[407768898,1772783536769,-1000.0,0.00047114,120]
[407768899,1772783536798,-1000.0,0.00047114,120]
[407768900,1772783536823,-1000.0,0.00047114,120]
[407768901,1772783536846,-1000.0,0.00047114,120]
[407768902,1772783536870,-1000.0,0.00047114,120]
[407768903,1772783536894,-500.0,0.00047114,120]
[407768904,1772783536918,-2162.9813467,0.00047114,120]
[407768905,1772783536942,-5349.0,0.00047114,30]
[407768906,1772783536967,-827782.77,0.00047114,120]
[407768907,1772783536997,-798038.0140134,0.00047114,30]
[407768908,1772783537021,-5000.0,0.00047114,37]
[407768909,1772783537046,-323636.07059172,0.00047114,30]
[407768910,1772783537069,-150.0,0.00047114,120]
[407768911,1772783537096,-500.0,0.00047114,120]
[407768912,1772783537120,-500.0,0.00047114,120]
[407768913,1772783537145,-510.74,0.00047114,120]
[407768914,1772783537172,-178239.33646216,0.00047114,30]
[407768915,1772783537197,-100000.0,0.00047114,30]
[407768916,1772783537224,-500.0,0.00047114,97]
[407768917,1772783537251,-500.0,0.00047114,97]
[407768918,1772783537279,-500.0,0.00047114,97]
[407768919,1772783537304,-500.0,0.00047114,97]
[407768920,1772783537328,-500.0,0.00047114,97]
[407768921,1772783537352,-174.40437893,0.00047114,97]
[407768922,1772783537376,-10000.0,0.00047114,120]
[407768923,1772783537400,-11997.5679982,0.00047114,120]
[407768924,1772783537424,-189.97,0.00047114,30]
[407768925,1772783537448,-903.24,0.00047114,30]
[407768926,1772783537476,-391.92845791,0.00047114,30]
[407768927,1772783537502,-300.0,0.00047114,30]
[407768928,1772783537530,-300.0,0.00047114,30]
[407768929,1772783537555,-300.0,0.00047114,30]
[407768930,1772783537580,-300.0,0.00047114,30]
[407768931,1772783537605,-300.0,0.00047114,30]
[407768932,1772783537630,-300.0,0.00047114,30]
[407768933,1772783537655,-300.0,0.00047114,30]
[407768934,1772783537680,-300.0,0.00047114,30]
[407768935,1772783537704,-300.0,0.00047114,30]
[407768936,1772783537728,-300.0,0.00047114,30]
[407768937,1772783537752,-300.0,0.00047114,30]
[407768938,1772783537777,-300.0,0.00047114,30]
[407768939,1772783537802,-300.0,0.00047114,30]
[407768940,1772783537825,-300.0,0.00047114,30]
[407768941,1772783537849,-300.0,0.00047114,30]
[407768942,1772783537873,-5000.0,0.00047114,120]
[407768943,1772783537897,-359.32990671,0.00047114,120]
[407768944,1772783537922,-359.32990671,0.00047114,120]
[407768945,1772783537947,-359.32990671,0.00047114,120]
[407768946,1772783537971,-359.32990671,0.00047114,120]
[407768947,1772783537996,-359.32990671,0.00047114,120]
[407768948,1772783538020,-359.32990671,0.00047114,120]
[407768949,1772783538046,-359.32990671,0.00047114,120]
[407768950,1772783538071,-359.32990671,0.00047114,120]
[407768951,1772783538098,-307787.08173527,0.00047114,120]
[407768952,1772783538125,-300.0,0.00047114,30]
[407768953,1772783538154,-213.3331446,0.00047114,120]
[407768954,1772783538179,-213.3331446,0.00047114,120]
[407768955,1772783538207,-213.3331446,0.00047114,120]
[407768956,1772783538238,-1341.77923126,0.00047114,120]
[407768957,1772783538263,-169.14514546,0.00047114,120]
[407768958,1772783538288,-280.63294983,0.00047114,60]
[407768959,1772783538317,-185.509828,0.00047114,120]
[407768960,1772783538346,-1140.0,0.00047114,120]
[407768961,1772783538371,-156.0,0.00047114,120]
[407768962,1772783538395,-796.37483273,0.00047114,120]
[407768963,1772783538419,-159.7021808,0.00047114,120]
[407768964,1772783538443,-546.11,0.00047114,120]
[407768965,1772783538467,-50586.07790595,0.00047114,48]
[407768966,1772783538491,-44744.0,0.00047114,30]
[407768967,1772783538516,-740.23691844,0.00047114,90]
[407768968,1772783538540,-436.0942647,0.00047114,120]
[407768969,1772783538566,-40784.20568551,0.00047114,30]
[407768970,1772783538591,-486.37324671,0.00047114,120]
[407768971,1772783538615,-339.76922024,0.00047114,120]
[407768972,1772783538640,-322.26708951,0.00047114,120]
[407768973,1772783538665,-814.73853598,0.00047114,120]
[407768974,1772783538691,-327.52134289,0.00047114,120]
[407768975,1772783538716,-2173.37597304,0.00047114,30]
[407768976,1772783538741,-330.46823396,0.00047114,120]
[407768977,1772783538766,-49308.91278617,0.00047114,31]
[407768978,1772783538791,-7842.59719341,0.00047114,120]
[407768979,1772783538816,-153.02456216,0.00047114,120]
[407768980,1772783538842,-151.12094299,0.00047114,60]
[407768981,1772783538869,-201.15009953,0.00047114,120]
[407768982,1772783538893,-1734.28282152,0.00047114,120]
[407768983,1772783538917,-775.74348075,0.00047114,120]
[407768984,1772783538942,-289.44372734,0.00047114,120]
[407768985,1772783538965,-198.28195244,0.00047114,120]
[407768986,1772783538990,-2335.21479722,0.00047114,30]
[407768987,1772783539014,-401.0087368,0.00047114,120]
[407768988,1772783539037,-682.97019498,0.00047114,30]
[407768989,1772783539061,-1439.71192831,0.00047114,30]
[407768990,1772783539085,-473.18434674,0.00047114,120]
[407768991,1772783539108,-266.99810897,0.00047114,120]
[407768992,1772783539133,-653.71041453,0.00047114,120]
[407768993,1772783539160,-954.16070251,0.00047114,30]
[407768994,1772783539184,-10134.59934274,0.00047114,90]
[407768995,1772783539448,-644.28972635,0.00047114,30]
[407768996,1772783539476,-500.0,0.00047114,120]
[407768997,1772783539501,-1097.37291246,0.00047114,30]
[407768998,1772783539525,-2502.1920382,0.00047114,120]
[407768999,1772783539550,-456.05251588,0.00047114,120]
[407769000,1772783539574,-320.48470475,0.00047114,120]
[407769001,1772783539598,-24053.62450594,0.00047114,30]
[407769002,1772783539622,-509.27920672,0.00047114,120]
[407769003,1772783539645,-280.940395,0.00047114,120]
[407769004,1772783539671,-555.5,0.00047114,30]
[407769005,1772783539696,-440.0,0.00047114,30]
[407769006,1772783539720,-11532.12384457,0.00047114,60]
[407769007,1772783539744,-714.04152568,0.00047114,120]
[407769008,1772783539768,-1255.08996213,0.00047114,120]
[407769009,1772783539793,-1255.08996213,0.00047114,120]
[407769010,1772783539818,-1255.08996213,0.00047114,120]
[407769011,1772783539842,-1255.08996213,0.00047114,120]
[407769012,1772783539867,-1255.08996213,0.00047114,120]
[407769013,1772783539892,-1255.08996213,0.00047114,120]
[407769014,1772783539917,-1255.08996213,0.00047114,120]
[407769015,1772783539943,-1255.08996213,0.00047114,120]
[407769016,1772783539970,-1255.08996213,0.00047114,120]
[407769017,1772783539995,-1255.08996213,0.00047114,120]
[407769018,1772783540021,-1255.08996213,0.00047114,120]
[407769019,1772783540047,-1255.08996213,0.00047114,120]
[407769020,1772783540072,-1255.08996213,0.00047114,120]
[407769021,1772783540100,-1255.08996213,0.00047114,120]
[407769022,1772783540126,-1255.08996213,0.00047114,120]
[407769023,1772783540152,-1255.08996213,0.00047114,120]
[407769024,1772783540178,-1255.08996213,0.00047114,120]
[407769025,1772783540204,-1255.08996213,0.00047114,120]
[407769026,1772783540233,-1255.08996213,0.00047114,120]
[407769027,1772783540260,-1255.08996213,0.00047114,120]
[407769028,1772783540288,-1255.08996213,0.00047114,120]
[407769029,1772783540316,-1255.08996213,0.00047114,120]
[407769030,1772783540342,-1255.08996213,0.00047114,120]
[407769031,1772783540370,-1255.08996213,0.00047114,120]
[407769032,1772783540398,-1255.08996213,0.00047114,120]
[407769033,1772783540425,-1255.08996213,0.00047114,120]
[407769034,1772783540451,-1255.08996213,0.00047114,120]
[407769035,1772783540478,-1255.08996213,0.00047114,120]
[407769036,1772783540504,-1255.08996213,0.00047114,120]
[407769037,1772783540533,-1255.08996213,0.00047114,120]
[407769038,1772783540559,-1255.08996213,0.00047114,120]
[407769039,1772783540585,-1255.08996213,0.00047114,120]
[407769040,1772783540611,-1255.08996213,0.00047114,120]
[407769041,1772783540638,-1255.08996213,0.00047114,120]
[407769042,1772783540663,-1255.08996213,0.00047114,120]
[407769043,1772783540689,-1255.08996213,0.00047114,120]
[407769044,1772783540715,-1255.08996213,0.00047114,120]
[407769045,1772783540740,-1255.08996213,0.00047114,120]
[407769046,1772783540766,-1255.08996213,0.00047114,120]
[407769047,1772783540791,-1255.08996213,0.00047114,120]
[407769048,1772783540816,-1255.08996213,0.00047114,120]
[407769049,1772783540843,-1255.08996213,0.00047114,120]
[407769050,1772783540869,-1255.08996213,0.00047114,120]
[407769051,1772783540896,-1255.08996213,0.00047114,120]
[407769052,1772783540921,-1255.08996213,0.00047114,120]
[407769053,1772783540948,-1255.08996213,0.00047114,120]
[407769054,1772783540974,-1255.08996213,0.00047114,120]
[407769055,1772783541000,-1255.08996213,0.00047114,120]
[407769056,1772783541024,-1255.08996213,0.00047114,120]
[407769057,1772783541050,-156.88624525,0.00047114,120]
[407769058,1772783541076,-156.88624525,0.00047114,120]
[407769059,1772783541103,-156.88624525,0.00047114,120]
[407769060,1772783541127,-156.88624525,0.00047114,120]
[407769061,1772783541157,-156.88624525,0.00047114,120]
[407769062,1772783541182,-156.88624525,0.00047114,120]
[407769063,1772783541209,-156.88624525,0.00047114,120]
[407769064,1772783541236,-156.88624525,0.00047114,120]
[407769065,1772783541260,-9919.00437585,0.00047114,120]
[407769066,1772783541283,-200.0,0.00047114,120]
[407769067,1772783541308,-195.54466,0.00047114,120]
[407769068,1772783541331,-4627.08719133,0.00047114,120]
[407769069,1772783541354,-6887.06640932,0.00047114,120]
[407769070,1772783541377,-2522.0,0.00047114,120]
[407769071,1772783541400,-1167.69970511,0.00047114,120]
[407769072,1772783541422,-18167.82246896,0.00047114,60]
[407769073,1772783541445,-33331.04656151,0.00047114,120]
[407769074,1772783541468,-4957.15231015,0.00047114,120]
[407769075,1772783541491,-928.53102512,0.00047114,120]
[407769076,1772783541515,-3670.47948201,0.00047114,120]
[407769077,1772783541539,-706.90735292,0.00047114,120]
[407769078,1772783541562,-152.26437893,0.00047114,120]
[407769079,1772783541586,-1666.32,0.00047114,120]
[407769080,1772783541610,-1109.0,0.00047114,30]
[407769081,1772783541633,-1109.0,0.00047114,30]
[407769082,1772783541656,-1109.0,0.00047114,30]
[407769083,1772783541680,-1109.0,0.00047114,30]
[407769084,1772783541703,-1109.0,0.00047114,30]
[407769085,1772783541726,-1109.0,0.00047114,30]
[407769086,1772783541749,-1109.0,0.00047114,30]
[407769087,1772783541773,-13194.50945268,0.00047114,120]
[407769088,1772783541798,-485.3718093,0.00047114,120]
[407769089,1772783541821,-1109.0,0.00047114,30]
[407769090,1772783541844,-1109.0,0.00047114,30]
[407769091,1772783541868,-1109.0,0.00047114,30]
[407769092,1772783541892,-1109.0,0.00047114,30]
[407769093,1772783541915,-279.48349249,0.00047114,120]
[407769094,1772783541938,-1109.0,0.00047114,30]
[407769095,1772783541961,-1109.0,0.00047114,30]
[407769096,1772783541987,-1109.0,0.00047114,30]
[407769097,1772783542011,-20000.0,0.00047114,120]
[407769098,1772783542034,-422.798526,0.00047114,90]
[407769099,1772783542060,-1109.0,0.00047114,30]
[407769100,1772783542084,-1938.21873,0.00047114,120]
[407769101,1772783542108,-11686.84106674,0.00047114,120]
[407769102,1772783542133,-51974.48,0.00047114,120]
[407769103,1772783542165,-1109.0,0.00047114,30]
[407769104,1772783542192,-1073.13932368,0.00047114,120]
[407769105,1772783542219,-528.47874738,0.00047114,120]
[407769106,1772783542246,-13914.3,0.00047114,120]
[407769107,1772783542284,-13914.3,0.00047114,120]
[407769108,1772783542319,-13914.3,0.00047114,120]
[407769109,1772783542358,-13914.3,0.00047114,120]
[407769110,1772783542390,-13914.3,0.00047114,120]
[407769111,1772783542428,-13914.3,0.00047114,120]
[407769112,1772783542465,-13914.3,0.00047114,120]
[407769113,1772783542499,-13914.3,0.00047114,120]
[407769114,1772783542537,-13914.3,0.00047114,120]
[407769115,1772783542573,-13914.3,0.00047114,120]
[407769116,1772783542610,-13914.3,0.00047114,120]
[407769117,1772783542640,-13914.3,0.00047114,120]
[407769118,1772783542676,-13914.3,0.00047114,120]
[407769119,1772783542705,-13914.3,0.00047114,120]
[407769120,1772783542740,-13914.3,0.00047114,120]
[407769121,1772783542770,-13914.3,0.00047114,120]
[407769122,1772783542801,-13914.3,0.00047114,120]
[407769123,1772783542835,-13914.3,0.00047114,120]
[407769124,1772783542881,-13914.3,0.00047114,120]
[407769125,1772783542914,-13914.3,0.00047114,120]
[407769126,1772783542947,-13914.3,0.00047114,120]
[407769127,1772783542981,-13914.3,0.00047114,120]
[407769128,1772783543012,-13914.3,0.00047114,120]
[407769129,1772783543045,-13914.45684704,0.00047114,120]
[407769130,1772783543080,-8039.53,0.00047114,120]
[407769131,1772783543114,-8039.53,0.00047114,120]
[407769132,1772783543149,-8039.53,0.00047114,120]
[407769133,1772783543183,-8039.53,0.00047114,120]
[407769134,1772783543220,-8039.53,0.00047114,120]
[407769135,1772783543253,-8039.53,0.00047114,120]
[407769136,1772783543287,-8039.53,0.00047114,120]
[407769137,1772783543321,-8039.53,0.00047114,120]
[407769138,1772783543357,-8039.53,0.00047114,120]
[407769139,1772783543390,-8039.53,0.00047114,120]
[407769140,1772783543427,-8039.53,0.00047114,120]
[407769141,1772783543461,-8039.53,0.00047114,120]
[407769142,1772783543496,-8039.53,0.00047114,120]
[407769143,1772783543530,-8039.53,0.00047114,120]
[407769144,1772783543562,-8039.53,0.00047114,120]
[407769145,1772783543596,-8039.53,0.00047114,120]
[407769146,1772783543630,-8039.53,0.00047114,120]
[407769147,1772783543664,-8039.53,0.00047114,120]
[407769148,1772783543698,-8039.53,0.00047114,120]
[407769149,1772783543734,-8039.53,0.00047114,120]
[407769150,1772783543768,-8039.53,0.00047114,120]
[407769151,1772783543801,-8039.53,0.00047114,120]
[407769152,1772783543835,-8039.53,0.00047114,120]
[407769153,1772783543871,-8039.56478663,0.00047114,120]
[407769154,1772783543904,-5000.0,0.00047114,38]
[407769155,1772783543937,-112000.0,0.00047114,120]
[407769156,1772783543969,-577872.37,0.00047114,30]
[407769157,1772783544000,-3785.13,0.00047114,30]
[407769158,1772783544032,-194.08,0.00047114,30]
[407769159,1772783544064,-181.92,0.00047114,30]
[407769160,1772783544097,-181.59,0.00047114,30]
[407769161,1772783544129,-850.81135616,0.00047114,120]
[407769162,1772783544166,-202.51,0.00047114,30]
[407769163,1772783544198,-563.03,0.00047114,30]
[407769164,1772783544232,-181.92,0.00047114,30]
[407769165,1772783544266,-202.47,0.00047114,30]
[407769166,1772783544298,-563.02,0.00047114,30]
[407769167,1772783544330,-202.47,0.00047114,30]
[407769168,1772783544362,-632.63,0.00047114,30]
[407769169,1772783544392,-202.47,0.00047114,30]
[407769170,1772783544424,-202.47,0.00047114,30]
[407769171,1772783544458,-181.48,0.00047114,30]
[407769172,1772783544488,-474.0,0.00047114,30]
[407769173,1772783544519,-184.35,0.00047114,30]
[407769174,1772783544550,-433.93493541,0.00047114,120]
[407769175,1772783544581,-181.92,0.00047114,30]
[407769176,1772783544612,-565.15,0.00047114,30]
[407769177,1772783544643,-201.63,0.00047114,30]
[407769178,1772783544675,-565.15,0.00047114,30]
[407769179,1772783544707,-181.89,0.00047114,30]
[407769180,1772783544740,-474.0,0.00047114,30]
[407769181,1772783544770,-562.93,0.00047114,30]
[407769182,1772783544800,-179.21,0.00047114,30]
[407769183,1772783544830,-473.92,0.00047114,30]
[407769184,1772783544859,-563.38,0.00047114,30]
[407769185,1772783544890,-202.47,0.00047114,30]
[407769186,1772783544923,-632.63,0.00047114,30]
[407769187,1772783544953,-181.92,0.00047114,30]
[407769188,1772783544986,-563.02,0.00047114,30]
[407769189,1772783545017,-202.47,0.00047114,30]
[407769190,1772783545049,-631.85,0.00047114,30]
[407769191,1772783545818,-480.57,0.00047114,30]
[407769192,1772783545888,-473.92,0.00047114,30]
[407769193,1772783545916,-202.47,0.00047114,30]
[407769194,1772783545943,-563.11,0.00047114,30]
[407769195,1772783545970,-632.54,0.00047114,30]
[407769196,1772783545995,-561.17,0.00047114,30]
[407769197,1772783546021,-632.63,0.00047114,30]
[407769198,1772783546044,-564.35,0.00047114,30]
[407769199,1772783546073,-632.63,0.00047114,30]
[407769200,1772783546107,-181.89,0.00047114,30]
[407769201,1772783546134,-563.02,0.00047114,30]
[407769202,1772783546165,-202.43,0.00047114,30]
[407769203,1772783546192,-150.0,0.00047114,30]
[407769204,1772783546218,-181.45,0.00047114,30]
[407769205,1772783546244,-565.15,0.00047114,30]
[407769206,1772783546268,-632.63,0.00047114,30]
[407769207,1772783546294,-562.34,0.00047114,30]
[407769208,1772783546319,-202.35,0.00047114,30]
[407769209,1772783546344,-181.92,0.00047114,30]
[407769210,1772783546368,-150.0,0.00047114,30]
[407769211,1772783546393,-474.0,0.00047114,30]
[407769212,1772783546419,-565.15,0.00047114,30]
[407769213,1772783546444,-473.92,0.00047114,30]
[407769214,1772783546471,-563.02,0.00047114,30]
[407769215,1772783546496,-632.72,0.00047114,30]
[407769216,1772783546522,-181.92,0.00047114,30]
[407769217,1772783546548,-472.41,0.00047114,30]
[407769218,1772783546574,-632.63,0.00047114,30]
[407769219,1772783546600,-562.67,0.00047114,30]
[407769220,1772783546627,-565.24,0.00047114,30]
[407769221,1772783546656,-201.97,0.00047114,30]
[407769222,1772783546682,-473.92,0.00047114,30]
[407769223,1772783546708,-202.35,0.00047114,30]
[407769224,1772783546734,-565.15,0.00047114,30]
[407769225,1772783546761,-150.0,0.00047114,30]
[407769226,1772783546789,-181.82,0.00047114,30]
[407769227,1772783546815,-632.63,0.00047114,30]
[407769228,1772783546840,-181.92,0.00047114,30]
[407769229,1772783546865,-473.92,0.00047114,30]
[407769230,1772783546890,-563.3,0.00047114,30]
[407769231,1772783546914,-563.02,0.00047114,30]
[407769232,1772783546939,-631.06,0.00047114,30]
[407769233,1772783546964,-473.92,0.00047114,30]
[407769234,1772783546990,-202.26,0.00047114,30]
[407769235,1772783547015,-150.0,0.00047114,30]
[407769236,1772783547041,-181.35,0.00047114,30]
[407769237,1772783547067,-632.72,0.00047114,30]
[407769238,1772783547093,-563.02,0.00047114,30]
[407769239,1772783547119,-565.15,0.00047114,30]
[407769240,1772783547146,-150.0,0.00047114,30]
[407769241,1772783547173,-473.92,0.00047114,30]
[407769242,1772783547201,-565.15,0.00047114,30]
[407769243,1772783547230,-562.93,0.00047114,30]
[407769244,1772783547256,-202.47,0.00047114,30]
[407769245,1772783547284,-628.99,0.00047114,30]
[407769246,1772783547310,-150.0,0.00047114,30]
[407769247,1772783547336,-150.0,0.00047114,30]
[407769248,1772783547363,-181.92,0.00047114,30]
[407769249,1772783547390,-565.15,0.00047114,30]
[407769250,1772783547417,-150.0,0.00047114,30]
[407769251,1772783547443,-201.97,0.00047114,30]
[407769252,1772783547471,-181.95,0.00047114,30]
[407769253,1772783547497,-632.63,0.00047114,30]
[407769254,1772783547524,-507.68,0.00047114,30]
[407769255,1772783547552,-473.92,0.00047114,30]
[407769256,1772783547579,-565.15,0.00047114,30]
[407769257,1772783547605,-154.71,0.00047114,30]
[407769258,1772783547632,-632.63,0.00047114,30]
[407769259,1772783547659,-181.92,0.00047114,30]
[407769260,1772783547782,-473.92,0.00047114,30]
[407769261,1772783547810,-563.02,0.00047114,30]
[407769262,1772783547837,-346.21,0.00047114,30]
[407769263,1772783547864,-151.49,0.00047114,30]
[407769264,1772783547892,-473.92,0.00047114,30]
[407769265,1772783547920,-150.0,0.00047114,30]
[407769266,1772783547947,-573.11,0.00047114,30]
[407769267,1772783547974,-181.92,0.00047114,30]
[407769268,1772783548000,-150.0,0.00047114,30]
[407769269,1772783548028,-632.63,0.00047114,30]
[407769270,1772783548056,-150.58,0.00047114,30]
[407769271,1772783548085,-202.47,0.00047114,30]
[407769272,1772783548114,-563.02,0.00047114,30]
[407769273,1772783548144,-150.0,0.00047114,30]
[407769274,1772783548174,-150.0,0.00047114,30]
[407769275,1772783548202,-181.92,0.00047114,30]
[407769276,1772783548233,-473.92,0.00047114,30]
[407769277,1772783548261,-630.68,0.00047114,30]
[407769278,1772783548291,-565.15,0.00047114,30]
[407769279,1772783548321,-562.33,0.00047114,30]
[407769280,1772783548350,-202.47,0.00047114,30]
[407769281,1772783548380,-632.63,0.00047114,30]
[407769282,1772783548410,-564.81,0.00047114,30]
[407769283,1772783548439,-202.43,0.00047114,30]
[407769284,1772783548468,-473.92,0.00047114,30]
[407769285,1772783548497,-582.34,0.00047114,30]
[407769286,1772783548525,-181.92,0.00047114,30]
[407769287,1772783548553,-632.54,0.00047114,30]
[407769288,1772783548582,-499.91,0.00047114,30]
[407769289,1772783548611,-150.0,0.00047114,30]
[407769290,1772783548639,-150.0,0.00047114,30]
[407769291,1772783548668,-563.02,0.00047114,30]
[407769292,1772783548697,-564.82,0.00047114,30]
[407769293,1772783548725,-202.47,0.00047114,30]
[407769294,1772783548753,-150.0,0.00047114,30]
[407769295,1772783548781,-150.0,0.00047114,30]
[407769296,1772783548808,-1262.48,0.00047114,30]
[407769297,1772783548835,-150.52,0.00047114,30]
[407769298,1772783548862,-563.11,0.00047114,30]
[407769299,1772783548891,-181.59,0.00047114,30]
[407769300,1772783548918,-150.0,0.00047114,30]
[407769301,1772783548945,-632.63,0.00047114,30]
[407769302,1772783548973,-471.82,0.00047114,30]
[407769303,1772783549002,-564.12,0.00047114,30]
[407769304,1772783549030,-150.0,0.00047114,30]
[407769305,1772783549059,-213.66,0.00047114,30]
[407769306,1772783549089,-150.0,0.00047114,30]
[407769307,1772783549117,-181.95,0.00047114,30]
[407769308,1772783549150,-150.0,0.00047114,30]
[407769309,1772783549177,-1247.55,0.00047114,30]
[407769310,1772783549211,-474.0,0.00047114,30]
[407769311,1772783549243,-563.02,0.00047114,30]
[407769312,1772783549273,-150.0,0.00047114,30]
[407769313,1772783549302,-640.7,0.00047114,30]
[407769314,1772783549331,-565.24,0.00047114,30]
[407769315,1772783549361,-202.51,0.00047114,30]
[407769316,1772783549390,-150.0,0.00047114,30]
[407769317,1772783549421,-607.31,0.00047114,30]